[Event "10th Iberoamericano-ch 2024"]
[Site "Linares"]
[Date "2024.09.29"]
[Round "7.6"]
[White "Fier, Alexandr"]
[Black "Romero Calduch, Sergio"]
[Result "1-0"]
[ECO "B12"]
[WhiteElo "2551"]
[BlackElo "2276"]
[Annotator "TA"]
[PlyCount "109"]
[EventDate "2024.09.25"]
[EventType "swiss"]
[EventCountry "ESP"]
[SourceTitle "playchess.com"]
[Source "ChessBase"]
[SourceQuality "1"]
[TimeControl "5400+30"]

{[%evp 12,109,12,17,33,25,30,18,29,7,29,25,95,85,100,74,83,70,110,84,95,99,125,121,123,116,127,120,133,118,136,116,120,113,170,162,168,173,173,164,167,167,173,178,186,186,177,164,163,154,176,172,202,186,207,217,223,222,326,327,272,191,227,187,197,192,206,200,333,345,303,332,368,357,404,396,539,589,596,608,862,929,859,848,1262,986,1387,1203,1560,1514,6082,5691,29971,29972,29973,29972,29979,29980,29980,29981]} 1. e4 {[%emt 0:00:03]} c6 {[%emt 0:00:13][%cal Bc7c6,Bc6c5][%mdl 32]} 2. d4 {[%emt 0:00:04]} d5 {[%emt 0:00:16]} 3. e5 {[%emt 0:00:04]} Bf5 {[%emt 0:00:09]} 4. Nf3 {[%emt 0:00:04]} e6 {[%emt 0:00:34]} 5. Be2 {[%emt 0:00:04]} c5 {[%emt 0:00:47]} 6. c3 {[%emt 0:00:13]} Nc6 {[%emt 0:01:17]} 7. O-O {[%emt 0:01:08]} h6 {[%emt 0:02:36]} 8. Be3 {[%emt 0:03:39]} cxd4 {[%emt 0:05:40]} 9. Nxd4 {[%emt 0:00:06]} Nge7 {[%emt 0:12:28] The position is equal.} 10. Bb5 {[%emt 0:05:34]} a6 {[%emt 0:04:09]} 11. Bxc6+ {[%emt 0:00:05]} Nxc6 {[%emt 0:00:03]} (11... bxc6 $11 12. b4 a5) 12. Nxf5 $16 {[%emt 0:00:28]} exf5 {[%emt 0:00:05]} 13. Nd2 {[%emt 0:00:04][%cal Bb1d2,Bd2f3,Bf3d4,Bd4f5][%mdl 32]} Be7 {[%emt 0:01:26][%cal Oe8g8]} 14. Nf3 {[%emt 0:00:49]} O-O {[%emt 0:00:44]} 15. Qd3 {[%emt 0:00:07]} Qd7 {[%emt 0:02:12]} 16. Rad1 {[%emt 0:00:31]} d4 {[%emt 0:15:24]} 17. Nxd4 {[%emt 0:02:02]} Nxe5 {[%emt 0:07:08]} 18. Qxf5 {[%emt 0:01:18]} Qxf5 {[%emt 0:00:33]} 19. Nxf5 {[%emt 0:00:04]} Bf6 {[%emt 0:02:25]} 20. Nd6 {[%emt 0:01:58] White is much more active.} b5 {[%emt 0:00:20]} 21. Bc5 {[%emt 0:00:27]} Rfd8 {[%emt 0:02:57]} 22. Ne4 {[%emt 0:00:30]} Nd3 {[%emt 0:01:51]} (22... Bh4 $16 23. b3 Rd3) 23. Nxf6+ {[%emt 0:01:35]} gxf6 {[%emt 0:00:22]} 24. Be7 {[%emt 0:00:03]} Re8 {[%emt 0:01:00][%cal Bd8e8,Be8e7,Be7e2][%mdl 32]} 25. Rxd3 {[%emt 0:01:05]} Rxe7 $18 {[%emt 0:00:05][%mdl 4096] Endgame. KRR-KRR} 26. Rfd1 {[%emt 0:00:19]} Re2 {[%emt 0:01:55] [#]} 27. R3d2 {[%emt 0:00:03]} Rae8 {[%emt 0:01:37]} 28. Kf1 {[%emt 0:00:05] Prevents Re1+} R2e4 {[%emt 0:01:50]} 29. a3 {[%emt 0:01:55]} Kg7 {[%emt 0:02:15]} 30. g3 {[%emt 0:00:03]} R8e5 {[%emt 0:03:03]} 31. Kg2 {[%emt 0:00:23]} Rc5 {[%emt 0:02:58]} 32. Kf3 {[%emt 0:00:16]} Re6 {[%emt 0:00:47]} 33. Rd5 {[%emt 0:00:18]} Rxd5 {[%emt 0:07:57]} 34. Rxd5 {[%emt 0:00:04] KR-KR} Re1 {[%emt 0:00:09]} (34... Kf8 $142 35. Rd4 h5) 35. Rd6 {[%emt 0:00:52]} Rb1 {[%emt 0:01:11]} 36. Rd2 {[%emt 0:00:03]} ({Don't play} 36. Rxa6 $6 Rxb2 37. a4 b4 $16) 36... Re1 {[%emt 0:00:25]} 37. Re2 {[%emt 0:00:04]} Rh1 {[%emt 0:00:15]} 38. h4 {[%emt 0:00:03]} Kg6 {[%emt 0:00:51]} 39. Ke3 {[%emt 0:00:04]} Rd1 {[%emt 0:01:49]} (39... f5 {keeps fighting.} 40. Rd2 Re1+ 41. Re2 Rd1) 40. Rd2 {[%emt 0:00:04]} Re1+ {[%emt 0:01:40]} 41. Kd4 {[%emt 0:00:03]} Re5 {[%emt 0:00:30]} 42. c4 {[%emt 0:00:05] [#] Black must now prevent c5.} bxc4 {[%emt 0:00:10]} 43. Kxc4 {[%emt 0:00:03]} Re6 {[%emt 0:01:37]} 44. b4 {[%emt 0:00:25]} f5 {[%emt 0:00:12][%cal Bf6f5,Bf5f4][%mdl 32]} 45. Kc5 {[%emt 0:01:07] Wards off Rc6+. aiming for Rd6.} f6 {[%emt 0:02:36]} 46. a4 {[%emt 0:00:16][%cal Ba3a4,Ba4b5,Bb5b6,Bb6b7][%mdl 32]} Re5+ {[%emt 0:02:36]} 47. Kb6 {[%emt 0:00:05]} Re4 {[%emt 0:00:30]} 48. Rb2 {[%emt 0:00:06]} Re6+ {[%emt 0:00:11]} 49. Kc7 {[%emt 0:00:08]} f4 {[%emt 0:01:04]} 50. b5 {[%emt 0:00:04]} axb5 {[%emt 0:00:52]} 51. axb5 {[%emt 0:00:05] Intending b6 and mate.} fxg3 {[%emt 0:02:18]} 52. fxg3 {[%emt 0:00:03] White mates.} Re7+ {[%emt 0:01:33]} 53. Kd6 {[%emt 0:00:10]} Re8 {[%emt 0:04:48]} 54. b6 {[%emt 0:00:05]} Kh5 {[%emt 0:00:09]} 55. b7 {[%emt 0:00:23] Black got outplayed after the opening.   Weighted Error Value: White=0.07 (flawless) /Black=0.40.  Mistake:       	---       	Black=4      Inaccurate:     	---       	Black=3      OK:         	White=20    	Black=13     Best:        	White=2     	---} 1-0

[Event "10th Iberoamericano-ch 2024"]
[Site "Linares"]
[Date "2024.09.29"]
[Round "7.7"]
[White "Flores Quillas, Diego Saul Rodri"]
[Black "Salinas Herrera, Pablo"]
[Result "1/2-1/2"]
[ECO "C84"]
[WhiteElo "2451"]
[BlackElo "2479"]
[Annotator "TA"]
[PlyCount "94"]
[EventDate "2024.09.25"]
[EventType "swiss"]
[EventCountry "ESP"]
[SourceTitle "playchess.com"]
[Source "ChessBase"]
[SourceQuality "1"]
[TimeControl "5400+30"]

{[%evp 26,94,10,-2,0,-24,-27,-18,-25,-48,-49,-53,-41,-80,-65,-80,-66,-66,-56,-118,-113,-131,-80,-99,-93,-142,-143,-135,-126,-115,-111,-147,-145,-136,-122,-120,-105,-104,-107,-168,-154,-157,-150,-210,-135,-135,0,-100,-41,-131,-77,-100,0,0,0,0,31,29,27,36,27,29,33,35,36,35,52,3,18,16,20]} 1. e4 {[%emt 0:10:49]} e5 {[%emt 0:00:12]} 2. Nf3 {[%emt 0:00:04]} Nc6 {[%emt 0:00:04]} 3. Bb5 {[%emt 0:00:03]} a6 {[%emt 0:00:04]} 4. Ba4 {[%emt 0:00:02]} Nf6 {[%emt 0:00:07]} 5. O-O {[%emt 0:00:05]} Be7 {[%emt 0:01:23]} 6. d4 {[%emt 0:01:30]} exd4 {[%emt 0:07:15]} 7. e5 {[%emt 0:00:13]} Ne4 {[%emt 0:00:06]} 8. Nxd4 {[%emt 0:00:07]} O-O {[%emt 0:00:45]} 9. Nf5 {[%emt 0:00:13]} d5 {[%emt 0:00:09]} 10. Bxc6 {[%emt 0:00:05]} bxc6 {[%emt 0:01:09]} 11. Nxe7+ {[%emt 0:00:07]} Qxe7 {[%emt 0:00:03]} 12. Re1 {[%emt 0:00:04]} Rd8 {[%emt 0:04:32] C84: Closed Ruy Lopez: Unusual White 6th moves.} 13. f3 $146 {[%emt 0:01:31]} ({Predecessor:} 13. Bf4 Bf5 14. Nd2 Nxd2 15. Qxd2 d4 16. Bg5 f6 17. exf6 Qf7 18. Re7 Qh5 19. Rxg7+ Kh8 20. Re1 Rg8 21. Qf4 Bg6 22. Rxg8+ Rxg8 23. f7 {1-0 Zhalmakhanov,R (2396)-Jarmula,L (2457) Titled Tuesday intern op 15th Nov Late blitz 2022 (6)}) 13... Ng5 {[%emt 0:02:54]} 14. Qd2 {[%emt 0:08:01]} Qc5+ {[%emt 0:06:49]} 15. Kh1 {[%emt 0:08:34]} Ne6 {[%emt 0:00:07]} 16. b3 {[%emt 0:00:44]} Qd4 {[%emt 0:03:11]} 17. c3 {[%emt 0:00:08]} Qxd2 {[%emt 0:00:15]} 18. Nxd2 {[%emt 0:00:10]} a5 {[%emt 0:00:06]} 19. a4 {[%emt 0:03:46]} Ba6 {[%emt 0:00:59]} 20. Ba3 {[%emt 0:00:35]} Rab8 {[%emt 0:08:11]} 21. g3 {[%emt 0:03:31]} Bd3 {[%emt 0:00:13]} 22. Kg2 {[%emt 0:01:37]} (22. Ra2 $15) 22... Bc2 $1 $17 {[%emt 0:02:46]} 23. f4 {[%emt 0:03:32] [#]} Re8 {[%emt 0:07:06]} (23... Bxb3 $2 24. f5 $18) (23... g6 $142 $1 24. Rec1 Bxb3) 24. Kf3 {[%emt 0:09:06]} h5 {[%emt 0:07:52]} 25. g4 {[%emt 0:25:21]} (25. Kf2 $142) 25... hxg4+ {[%emt 0:00:07]} 26. Kxg4 {[%emt 0:00:04] [#]} g6 $1 {[%emt 0:00:29]} (26... Bxb3 27. f5 Nf8 28. Kf4 $17) 27. Rac1 {[%emt 0:00:10]} Bxb3 {[%emt 0:09:27]} (27... Bf5+ {simplifies} 28. Kg3 c5 29. Rf1 Kg7) 28. f5 {[%emt 0:00:06]} gxf5+ {[%emt 0:00:33]} 29. Kxf5 {[%emt 0:00:13]} Ng7+ {[%emt 0:01:11]} 30. Kf4 {[%emt 0:00:35]} Bxa4 {[%emt 0:02:43]} 31. Rg1 {[%emt 0:09:00]} Re6 {[%emt 0:00:05]} 32. Rg4 {[%emt 0:02:36]} (32. Nf3 $17) 32... Rg6 $19 {[%emt 0:00:30]} 33. Rxg6 {[%emt 0:00:11]} fxg6 {[%emt 0:00:30]} 34. Kg4 {[%emt 0:00:30]} (34. Kg5 $17) 34... Re8 {[%emt 0:00:12]} 35. Nf3 {[%emt 0:01:45]} Kf7 {[%emt 0:00:04]} ({Better is} 35... Bb5 $17 {Threatens to win with ...Be2.} 36. Rc2 Bd3) 36. Rf1 {[%emt 0:00:30]} (36. Ng5+ $1 $11 {was the only way to keep the balance.} Kg8 37. Rf1) 36... Ne6 {[%emt 0:02:13]} (36... Nf5 $17 {White must now prevent ...Ne3+.} 37. Bc5 Rh8) 37. Kh4 {[%emt 0:00:53]} (37. Ng5+ $15 Kg7 38. Rf7+ Kg8 39. Rf6 Bd1+ 40. Kh4 Nxg5 41. Kxg5 Rxe5+ 42. Kh6) 37... Kg8 {[%emt 0:00:30]} (37... Kg7 $142 {And now ...c5 would win.} 38. Ra1 Bb5) 38. Nd4 $17 {[%emt 0:01:53]} Ng7 {[%emt 0:03:44]} (38... Nd8 $17 {[%cal Oa4b5]} 39. Re1 Kf7 40. Rf1+ Kg7) 39. Kg5 $11 {[%emt 0:01:36]} Bb5 {[%emt 0:03:59]} (39... Rxe5+ 40. Kxg6 c5 41. Bxc5 Be8+ 42. Kf6) 40. Rf3 {[%emt 0:01:47]} Ba4 {[%emt 0:10:01]} 41. Kxg6 {[%emt 0:00:40]} c5 $1 {[%emt 0:00:23]} (41... Bd1 42. Rf1 Bh5+ 43. Kh6 $18) 42. Bxc5 {[%emt 0:00:21]} Ne6 $1 {[%emt 0:00:03]} 43. Ba3 {[%emt 0:03:37]} c5 {[%emt 0:00:05]} 44. Nxe6 {[%emt 0:00:08]} Rxe6+ {[%emt 0:00:05]} 45. Kf5 {[%emt 0:00:04]} Bd7 {[%emt 0:00:06]} 46. Kf4 {[%emt 0:01:17]} (46. Rd3 $1 $14) 46... Rc6 {[%emt 0:00:00]} 47. h4 {[%emt 0:02:00]} Be6 {[%emt 0:00:18]} 1/2-1/2

[Event "10th Iberoamericano-ch 2024"]
[Site "Linares"]
[Date "2024.09.29"]
[Round "7.8"]
[White "Gines Esteo, Pedro Antonio"]
[Black "Lopez Martinez, Josep Manuel"]
[Result "1/2-1/2"]
[ECO "A05"]
[WhiteElo "2477"]
[BlackElo "2448"]
[Annotator "RC"]
[PlyCount "117"]
[EventDate "2024.09.25"]
[EventType "swiss"]
[EventCountry "ESP"]
[SourceTitle "playchess.com"]
[Source "ChessBase"]
[SourceQuality "1"]
[TimeControl "5400+30"]

1. Nf3 {[%emt 0:11:49]} d5 {[%emt 0:00:58]} 2. g3 {[%emt 0:00:06]} Nf6 {[%emt 0:01:14]} 3. Bg2 {[%emt 0:00:05]} e6 {[%emt 0:00:10]} 4. O-O {[%emt 0:00:27]} Be7 {[%emt 0:00:17]} 5. d3 {[%emt 0:05:45]} O-O {[%emt 0:03:19]} 6. Bf4 {[%emt 0:01:47]} Nh5 {[%emt 0:09:42]} 7. Bd2 {[%emt 0:05:51]} Nf6 {[%emt 0:01:56]} 8. Re1 {[%emt 0:01:29]} Nc6 {[%emt 0:04:25]} 9. e4 {[%emt 0:13:08]} dxe4 {[%emt 0:05:59]} 10. dxe4 {[%emt 0:00:05]} e5 {[%emt 0:00:11]} 11. Nc3 {[%emt 0:04:51]} Be6 {[%emt 0:01:14]} 12. Bg5 {[%emt 0:15:16]} Bb4 {[%emt 0:21:41]} 13. Qd3 {[%emt 0:16:29]} Qxd3 {[%emt 0:01:10]} 14. cxd3 {[%emt 0:01:46]} Rfd8 {[%emt 0:00:20]} 15. Red1 {[%emt 0:01:21]} Rd7 {[%emt 0:00:36]} 16. a3 {[%emt 0:06:11]} Be7 {[%emt 0:10:04]} 17. b4 {[%emt 0:00:20]} a6 {[%emt 0:00:10]} 18. h3 {[%emt 0:05:16]} Rad8 {[%emt 0:00:43]} 19. Bf1 {[%emt 0:00:39]} h6 {[%emt 0:01:58]} 20. Be3 {[%emt 0:00:25]} Nh7 {[%emt 0:00:37]} 21. Rab1 {[%emt 0:02:30]} Ng5 {[%emt 0:00:43]} 22. Nxg5 {[%emt 0:00:15]} hxg5 {[%emt 0:00:22]} 23. Rdc1 {[%emt 0:02:12]} Nd4 {[%emt 0:04:10]} 24. Na4 {[%emt 0:00:19]} c6 {[%emt 0:04:35]} 25. Nc5 {[%emt 0:01:06]} Bxc5 {[%emt 0:00:29]} 26. bxc5 {[%emt 0:01:13]} Nf3+ {[%emt 0:03:00]} 27. Kg2 {[%emt 0:00:07]} g4 {[%emt 0:00:16]} 28. Be2 {[%emt 0:01:30]} Nd4 {[%emt 0:00:23]} 29. Bxg4 {[%emt 0:01:05]} Bxg4 {[%emt 0:00:10]} 30. hxg4 {[%emt 0:00:00]} Ne6 {[%emt 0:00:16]} 31. Rc3 {[%emt 0:01:21]} Rxd3 {[%emt 0:00:16]} 32. Rxd3 {[%emt 0:00:05]} Rxd3 {[%emt 0:00:05]} 33. Rxb7 {[%emt 0:00:03]} Rxa3 {[%emt 0:00:15]} 34. Rb8+ {[%emt 0:01:41]} Kh7 {[%emt 0:00:07]} 35. Rc8 {[%emt 0:00:01]} Ra4 {[%emt 0:00:53]} 36. Kf3 {[%emt 0:01:21]} Rc4 {[%emt 0:01:35]} 37. Rxc6 {[%emt 0:00:18]} a5 {[%emt 0:00:03]} 38. Ra6 {[%emt 0:00:44]} a4 {[%emt 0:00:12]} 39. c6 {[%emt 0:00:31]} f6 {[%emt 0:06:45]} 40. Ke2 {[%emt 0:00:30]} Nc5 {[%emt 0:00:32]} 41. Bxc5 {[%emt 0:00:28]} Rxc5 {[%emt 0:00:06]} 42. Kd3 {[%emt 0:00:32]} a3 {[%emt 0:00:17]} 43. f4 {[%emt 0:00:28]} a2 {[%emt 0:00:43]} 44. Rxa2 {[%emt 0:00:14]} Rxc6 {[%emt 0:00:04]} 45. Ra5 {[%emt 0:00:46]} exf4 {[%emt 0:00:10]} 46. gxf4 {[%emt 0:00:05]} Rb6 {[%emt 0:00:49]} 47. g5 {[%emt 0:00:54]} Kg6 {[%emt 0:00:10]} 48. gxf6 {[%emt 0:00:14]} gxf6 {[%emt 0:00:06]} 49. Kd4 {[%emt 0:00:17]} Rb1 {[%emt 0:00:15]} 50. Kd5 {[%emt 0:00:44]} Rd1+ {[%emt 0:00:33]} 51. Ke6 {[%emt 0:00:42]} Rd4 {[%emt 0:00:26]} 52. f5+ {[%emt 0:00:20]} Kg5 {[%emt 0:00:07]} 53. e5 {[%emt 0:00:30]} fxe5 {[%emt 0:00:04]} 54. Rxe5 {[%emt 0:00:44]} Ra4 {[%emt 0:00:19]} 55. Rb5 {[%emt 0:00:32]} Ra6+ {[%emt 0:00:11]} 56. Ke5 {[%emt 0:00:16]} Rf6 {[%emt 0:00:35]} 57. Ke4 {[%emt 0:00:04]} Ra6 {[%emt 0:00:08]} 58. Ke5 {[%emt 0:00:59]} Rf6 {[%emt 0:00:06]} 59. Ke4 {[%emt 0:00:02]} 1/2-1/2

[Event "10th Iberoamericano-ch 2024"]
[Site "Linares"]
[Date "2024.09.29"]
[Round "7.9"]
[White "Garrido Outon, Alex"]
[Black "Garcia Fernandez, Victor"]
[Result "1-0"]
[ECO "B33"]
[WhiteElo "2448"]
[BlackElo "2353"]
[Annotator "TA"]
[PlyCount "65"]
[EventDate "2024.09.25"]
[EventType "swiss"]
[EventCountry "ESP"]
[SourceTitle "playchess.com"]
[Source "ChessBase"]
[SourceQuality "1"]
[TimeControl "5400+30"]

{[%evp 12,65,0,0,9,8,3,2,5,1,0,0,0,10,11,0,15,8,22,0,0,0,35,37,90,93,104,114,90,91,129,150,279,275,258,191,194,182,530,297,531,218,623,428,822,797,795,871,841,805,29989,29990,29992,29993,29993,29994]} 1. e4 {[%emt 0:00:03]} c5 {[%emt 0:00:08]} 2. Nf3 {[%emt 0:00:06]} Nc6 {[%emt 0:00:13]} 3. d4 {[%emt 0:00:08]} cxd4 {[%emt 0:00:05]} 4. Nxd4 {[%emt 0:00:05]} Nf6 {[%emt 0:00:28]} 5. Nc3 {[%emt 0:00:09]} e5 {[%emt 0:00:06]} 6. Nde2 {[%emt 0:11:53]} Bc5 {[%emt 0:06:21]} 7. Ng3 {[%emt 0:00:08]} d6 {[%emt 0:14:31] Strongly threatening ...Ng4.} 8. Na4 {[%emt 0:00:11]} Bb4+ {[%emt 0:02:54]} 9. c3 {[%emt 0:01:33]} Ba5 {[%emt 0:00:07] The position is equal.} 10. b4 {[%emt 0:00:06]} Bc7 {[%emt 0:00:17]} 11. Bd3 {[%emt 0:00:15]} O-O {[%emt 0:18:16]} 12. O-O {[%emt 0:00:57]} h6 {[%emt 0:01:48]} 13. h3 {[%emt 0:08:35]} d5 {[%emt 0:07:57]} 14. exd5 {[%emt 0:02:34]} Nxd5 {[%emt 0:01:08]} 15. Qf3 {[%emt 0:10:14]} Nce7 {[%emt 0:10:12]} 16. Rd1 {[%emt 0:17:14]} Qe8 {[%emt 0:13:10]} 17. Bc2 {[%emt 0:03:47]} Nb6 {[%emt 0:08:06]} ({Black should try} 17... Qc6 $14) 18. Nxb6 $16 {[%emt 0:12:28] White leaves nothing to chance now.} axb6 {[%emt 0:04:47]} 19. Qe4 $40 {[%emt 0:12:34][%mdl 128] Black is in trouble. White has more active pieces.} Ng6 {[%emt 0:01:07]} 20. Nf5 {[%emt 0:00:00]} Bxf5 {[%emt 0:07:21]} 21. Qxf5 {[%emt 0:00:13]} Qc6 {[%emt 0:00:52]} (21... e4 $16 {was necessary.} 22. Bxe4 Be5) 22. Be4 $18 {[%emt 0:04:53]} Qxc3 {[%emt 0:00:44]} 23. Bd2 {[%emt 0:00:47]} Qb2 {[%emt 0:00:34][%cal Oa8d8]} 24. Rac1 {[%emt 0:02:25]} (24. Bxb7 Rad8 25. Be3 Qxb4 $11) 24... Bd6 {[%emt 0:00:42] [#]} (24... Bd8 25. g3 (25. Bxb7 Rxa2 26. Rb1 Qd4 $16) 25... Bf6 26. Bxh6 (26. Bxb7 Rad8 $16) 26... Rfd8 27. Rxd8+ (27. Bxb7 Rxd1+ 28. Rxd1 Rxa2 $16) 27... Rxd8) 25. h4 {[%emt 0:04:22]} (25. Bxb7 Rad8 $16 (25... Rxa2 26. Be4 $18)) 25... h5 $2 {[%emt 0:00:33]} (25... Rfd8 {was worth a try.} 26. Bd5 (26. Bxb7 Ne7 $16) 26... Nh8) 26. Qxh5 {[%emt 0:01:18]} (26. g4 $142 Rfd8 27. gxh5 (27. Qxh5 Bc5 $17) (27. Bd5 Nh8 $18)) 26... Rad8 $2 {[%emt 0:00:20]} (26... Be7 27. Bc3 (27. Bxb7 Rad8 $16) 27... Qa3) 27. Qf5 {[%emt 0:00:53]} (27. Bxb7 Be7 28. Be3 Nf4 29. Bxf4 Rxd1+ 30. Rxd1 exf4 $16) 27... Rfe8 {[%emt 0:00:32]} (27... Be7 $142) 28. Bg5 {[%emt 0:04:10] [#] Black must now prevent h5. This pair of bishops is nice.} (28. Bxb7 Bxb4 29. Rb1 Rxd2 $16) 28... Be7 {[%emt 0:00:31]} 29. Rxd8 {[%emt 0:00:29]} (29. Bxb7 Nxh4 30. Qg4 (30. Bxh4 Bxh4 31. g3 g6 $11) 30... Rxd1+ 31. Rxd1 Bxg5 32. Qxg5 Qxb4 $11) (29. Bd5 Rxd5 30. Rxd5 Bxg5 $16) 29... Rxd8 {[%emt 0:00:25]} 30. Rc7 {[%emt 0:00:05]} ({Worse is} 30. Bxb7 Nxh4 31. Qg4 Bxg5 32. Qxg5 f6 $15) 30... Bf6 {[%emt 0:00:42]} 31. Bxf6 {[%emt 0:00:53] White mates.} (31. Bxb7 Qxb4 32. Be4 (32. Bxf6 gxf6 33. Be4 Qd6 $18) 32... Qd6 $18) 31... gxf6 {[%emt 0:00:29]} 32. Qxf6 {[%emt 0:00:12]} Rf8 {[%emt 0:00:30]} 33. Bxg6 {[%emt 0:00:15] Weighted Error Value: White=0.43/Black=1.00.  Mistake:       	White=1     	Black=6      Inaccurate:     	White=2     	Black=2      OK:         	White=10    	Black=5      Best:        	---       	Black=1} 1-0

[Event "10th Iberoamericano-ch 2024"]
[Site "Linares"]
[Date "2024.09.29"]
[Round "7.10"]
[White "Sos Andreu, Eric"]
[Black "Horcajuelo Rocamora, Martin"]
[Result "1/2-1/2"]
[ECO "E04"]
[WhiteElo "2359"]
[BlackElo "2394"]
[Annotator "RC"]
[PlyCount "163"]
[EventDate "2024.09.25"]
[EventType "swiss"]
[EventCountry "ESP"]
[SourceTitle "playchess.com"]
[Source "ChessBase"]
[SourceQuality "1"]
[TimeControl "5400+30"]

1. d4 {[%emt 0:00:03]} Nf6 {[%emt 0:00:08]} 2. c4 {[%emt 0:00:06]} e6 {[%emt 0:00:06]} 3. Nf3 {[%emt 0:00:36]} d5 {[%emt 0:00:08]} 4. g3 {[%emt 0:00:12]} dxc4 {[%emt 0:00:48]} 5. Bg2 {[%emt 0:00:06]} c5 {[%emt 0:00:14]} 6. O-O {[%emt 0:00:32]} Nc6 {[%emt 0:00:05]} 7. Qa4 {[%emt 0:01:47]} Bd7 {[%emt 0:00:09]} 8. Qxc4 {[%emt 0:00:06]} b5 {[%emt 0:00:08]} 9. Qd3 {[%emt 0:00:28]} c4 {[%emt 0:00:07]} 10. Qc2 {[%emt 0:00:16]} Be7 {[%emt 0:02:40]} 11. e4 {[%emt 0:01:53]} O-O {[%emt 0:02:09]} 12. Qe2 {[%emt 0:07:10]} Rc8 {[%emt 0:06:43]} 13. Rd1 {[%emt 0:01:32]} Na5 {[%emt 0:11:16]} 14. d5 {[%emt 0:07:31]} exd5 {[%emt 0:00:37]} 15. e5 {[%emt 0:00:08]} Ne8 {[%emt 0:00:16]} 16. Nc3 {[%emt 0:06:16]} Nc7 {[%emt 0:07:44]} 17. Nxd5 {[%emt 0:00:57]} Nxd5 {[%emt 0:05:09]} 18. Rxd5 {[%emt 0:00:06]} Nc6 {[%emt 0:03:54]} 19. Bh3 {[%emt 0:15:03]} Bxh3 {[%emt 0:03:19]} 20. Rxd8 {[%emt 0:01:11]} Rfxd8 {[%emt 0:00:18]} 21. Bg5 {[%emt 0:05:12]} Bxg5 {[%emt 0:11:58]} 22. Nxg5 {[%emt 0:00:08]} Bf5 {[%emt 0:00:07]} 23. Rd1 {[%emt 0:11:12]} h6 {[%emt 0:08:01]} 24. Rxd8+ {[%emt 0:14:28]} Rxd8 {[%emt 0:00:07]} 25. Ne4 {[%emt 0:01:06]} Rd3 {[%emt 0:14:28]} 26. Nd6 {[%emt 0:09:59]} Nd4 {[%emt 0:04:07]} 27. Qh5 {[%emt 0:00:06]} Be6 {[%emt 0:03:53]} 28. f4 {[%emt 0:03:04]} Bd5 {[%emt 0:10:32]} 29. Nf5 {[%emt 0:03:20]} Bf3 30. Qh3 {[%emt 0:01:41]} Be4 {[%emt 0:05:41]} 31. Nxd4 {[%emt 0:00:30]} Rxd4 {[%emt 0:00:00]} 32. e6 {[%emt 0:00:31]} fxe6 {[%emt 0:01:05]} 33. Qxe6+ {[%emt 0:00:05]} Kh7 {[%emt 0:00:30]} 34. f5 {[%emt 0:01:59]} Rd1+ {[%emt 0:00:19]} 35. Kf2 {[%emt 0:00:02]} Bd3 {[%emt 0:00:05]} 36. g4 {[%emt 0:00:59]} b4 {[%emt 0:00:33]} 37. Qc6 {[%emt 0:00:39]} Rd2+ {[%emt 0:00:42]} 38. Kg3 {[%emt 0:00:05]} Re2 {[%emt 0:00:50]} 39. f6 {[%emt 0:01:44]} gxf6 {[%emt 0:00:14]} 40. Qxf6 {[%emt 0:00:26]} Bg6 {[%emt 0:00:37]} 41. h4 {[%emt 0:00:23]} h5 {[%emt 0:00:42]} 42. g5 {[%emt 0:00:33]} c3 {[%emt 0:00:09]} 43. bxc3 {[%emt 0:00:25]} bxc3 {[%emt 0:00:24]} 44. Qxc3 {[%emt 0:01:05]} Rxa2 {[%emt 0:00:05]} 45. Qc7+ {[%emt 0:00:04]} Kh8 {[%emt 0:00:04]} 46. Qd8+ {[%emt 0:00:17]} Kh7 {[%emt 0:00:05]} 47. Qf8 {[%emt 0:00:06]} Ra6 {[%emt 0:01:48]} 48. Kf2 {[%emt 0:00:24]} Re6 {[%emt 0:00:44]} 49. Qc5 {[%emt 0:01:34]} Re8 {[%emt 0:00:29]} 50. Qxa7+ {[%emt 0:00:08]} Kh8 {[%emt 0:00:02]} 51. Kf3 {[%emt 0:01:05]} Rf8+ {[%emt 0:00:13]} 52. Ke3 {[%emt 0:00:19]} Rf7 {[%emt 0:00:04]} 53. Qb8+ {[%emt 0:00:05]} Kh7 {[%emt 0:00:05]} 54. Kd4 {[%emt 0:01:07]} Rf1 {[%emt 0:00:11]} 55. Qc7+ {[%emt 0:01:07]} Rf7 {[%emt 0:00:06]} 56. Qc1 {[%emt 0:01:31]} Rf5 {[%emt 0:00:11]} 57. Qe3 {[%emt 0:00:49]} Kh8 {[%emt 0:00:28]} 58. Qe6 {[%emt 0:00:10]} Kh7 {[%emt 0:00:06]} 59. Qd6 {[%emt 0:00:53]} Kg7 {[%emt 0:00:48]} 60. Qe7+ {[%emt 0:00:07]} Rf7 {[%emt 0:00:16]} 61. Qe6 {[%emt 0:00:55]} Rf5 {[%emt 0:00:08]} 62. Qe7+ {[%emt 0:01:00]} Rf7 {[%emt 0:00:05]} 63. Qd8 {[%emt 0:00:04]} Rf5 {[%emt 0:00:09]} 64. Qb6 {[%emt 0:00:13]} Kh7 {[%emt 0:00:11]} 65. Qa6 {[%emt 0:00:30]} Kg7 {[%emt 0:00:04]} 66. Qa7+ {[%emt 0:00:14]} Rf7 {[%emt 0:00:08]} 67. Qa1 {[%emt 0:00:02]} Rf5 {[%emt 0:00:26]} 68. Kc4+ {[%emt 0:00:38]} Kh7 {[%emt 0:00:03]} 69. Qd4 {[%emt 0:00:21]} Bf7+ {[%emt 0:00:28]} 70. Kb4 {[%emt 0:00:12]} Bg6 {[%emt 0:00:03]} 71. Qa1 {[%emt 0:00:37]} Kg8 {[%emt 0:00:22]} 72. Qa7 {[%emt 0:00:13]} Kh8 {[%emt 0:00:18]} 73. Kc3 {[%emt 0:00:31]} Rf7 {[%emt 0:00:07]} 74. Qb6 {[%emt 0:00:50]} Kh7 {[%emt 0:00:04]} 75. Kd4 {[%emt 0:00:03]} Rf5 {[%emt 0:00:04]} 76. Qa7+ {[%emt 0:00:21]} Rf7 {[%emt 0:00:05]} 77. Qa2 {[%emt 0:00:21]} Rf5 {[%emt 0:00:03]} 78. Qe6 {[%emt 0:00:15]} Kg7 {[%emt 0:00:07]} 79. Qe7+ {[%emt 0:00:09]} Rf7 {[%emt 0:00:06]} 80. Qe5+ {[%emt 0:00:28]} Kh7 {[%emt 0:00:03]} 81. Qd6 {[%emt 0:00:11]} Rf5 {[%emt 0:00:04]} 82. Ke4 1/2-1/2